[Event "American Cup Blitz 2024"]
[Site "Saint Louis"]
[Date "2024.03.21"]
[Round "4.9"]
[White "Batsuren, Dambasuren"]
[Black "Oparin, Grigoriy"]
[Result "0-1"]
[ECO "A30"]
[WhiteElo "2515"]
[BlackElo "2671"]
[Annotator "TA"]
[PlyCount "122"]
[EventDate "2024.03.21"]
[EventType "swiss"]
[EventCountry "USA"]
[SourceTitle "playchess.com"]
[Source "ChessBase"]
[SourceQuality "1"]
[TimeControl "180+2"]

{[%evp 49,122,0,0,-24,-21,-156,-141,-171,-151,-213,-69,-184,-184,-217,-161,-220,-189,-211,-195,-253,-232,-349,-347,-502,-471,-573,-525,-671,-519,-492,-315,-283,-71,-73,0,-18,-25,-53,0,-33,0,0,0,0,0,-42,-56,-637,-566,-572,-376,-676,-666,-1355,-739,-729,-714,-678,-568,-5289,-949,-29986,-29987,-29987,-29988,-29990,-29991,-29991,-29992,-29993,-29993,-29993,-29994,-29994,-1054]} 1. Nf3 {[%emt 0:00:01]} c5 {[%emt 0:00:01]} 2. c4 {[%emt 0:00:02]} Nf6 {[%emt 0:00:01]} 3. g3 {[%emt 0:00:01]} b6 {[%emt 0:00:01]} 4. Bg2 {[%emt 0:00:03]} Bb7 {[%emt 0:00:01]} 5. O-O {[%emt 0:00:02]} g6 {[%emt 0:00:02]} 6. b3 {[%emt 0:00:02]} Bg7 {[%emt 0:00:01]} 7. Bb2 {[%emt 0:00:01]} O-O {[%emt 0:00:02]} 8. d4 {[%emt 0:00:07]} e6 {[%emt 0:00:01]} 9. d5 {[%emt 0:00:19]} exd5 {[%emt 0:00:05]} 10. Nh4 {[%emt 0:00:20]} Re8 {[%emt 0:00:12]} 11. Re1 {[%emt 0:00:10]} d6 {[%emt 0:00:08]} 12. cxd5 {[%emt 0:00:06]} b5 {[%emt 0:00:06]} 13. a4 {[%emt 0:00:12]} b4 {[%emt 0:00:15]} 14. a5 {[%emt 0:00:16]} Ba6 {[%emt 0:00:06]} 15. Nd2 {[%emt 0:00:09]} Nbd7 {[%emt 0:00:03]} 16. h3 {[%emt 0:00:21]} Rc8 {[%emt 0:00:10]} 17. Nhf3 {[%emt 0:00:06]} Ne4 {[%emt 0:00:13]} 18. Bxg7 {[%emt 0:00:10]} Kxg7 {[%emt 0:00:01]} 19. Nxe4 {[%emt 0:00:04]} Rxe4 {[%emt 0:00:02]} 20. Nd2 {[%emt 0:00:18]} Re8 {[%emt 0:00:02]} 21. Qc2 {[%emt 0:00:22]} Qf6 {[%emt 0:00:20]} 22. Ne4 {[%emt 0:00:04]} Qe5 {[%emt 0:00:03]} 23. f4 {[%emt 0:00:05]} Qe7 {[%emt 0:00:49]} 24. Qb2+ {[%emt 0:00:09]} f6 {[%emt 0:00:01]} 25. e3 {[%emt 0:00:04]} Kg8 {[%emt 0:00:07]} 26. Nd2 {[%emt 0:00:06]} f5 {[%emt 0:00:14]} 27. Bf1 {[%emt 0:00:03]} (27. e4 $11) 27... Bxf1 $17 {[%emt 0:00:09]} 28. Kxf1 {[%emt 0:00:04]} Nf6 {[%emt 0:00:01]} 29. Rad1 {[%emt 0:00:09]} (29. Qc2 $17 {keeps fighting.}) 29... Ne4 {[%emt 0:00:28]} (29... Nxd5 $19 30. Nc4 Nc3 31. Rxd6 Ne4) 30. Kg2 {[%emt 0:00:03]} (30. Nxe4 $1 $15 Qxe4 31. Kf2) 30... Nc3 $19 {[%emt 0:00:06]} 31. Rc1 {[%emt 0:00:01]} Nxd5 {[%emt 0:00:01]} 32. Nc4 {[%emt 0:00:01]} (32. e4 $142 Nc3 33. exf5 Qb7+ (33... Qxe1 34. Rxe1 Rxe1 35. Qc2 $17) 34. Kh2) 32... Nf6 {[%emt 0:00:02]} 33. Rcd1 {[%emt 0:00:02]} Ne4 {[%emt 0:00:02]} 34. Qc2 {[%emt 0:00:03]} (34. Rd3 $142) 34... Rcd8 {[%emt 0:00:02]} 35. Rd5 {[%emt 0:00:02]} (35. Rd3 {was called for.}) 35... Qb7 $19 {[%emt 0:00:01]} 36. Red1 {[%emt 0:00:03]} (36. Rdd1 {is a better defense.}) 36... Nc3 {[%emt 0:00:02]} 37. a6 {[%emt 0:00:01]} Qc6 {[%emt 0:00:05]} (37... Qxd5+ 38. Rxd5 Nxd5 39. Qe2 $11) 38. Na5 {[%emt 0:00:03]} Nxd5 {[%emt 0:00:06]} (38... Qxd5+ $2 39. Rxd5 Rxe3 (39... Nxd5 $2 {perishes.} 40. Qc4 $18) 40. Rd2 $18) 39. Qc4 {[%emt 0:00:01]} Qd7 {[%emt 0:00:03]} 40. Rxd5 {[%emt 0:00:01]} Qf7 $2 {[%emt 0:00:02]} (40... Rxe3 $2 {too greedy.} 41. Rxd6+ (41. Rxc5+ $2 d5 $19) 41... Kg7 42. Rxd7+ Rxd7 43. Kf2 $18 (43. Qxc5 Rd2+ 44. Kf1 Rc3 $11)) (40... Re4 $19 {and Black stays clearly on top.} 41. Qd3 Qg7) 41. Nb7 $17 {[%emt 0:00:02] [#]} Kg7 {[%emt 0:00:04]} (41... Re4 $1 $17 42. Nxd8 Rxc4 43. Nxf7 Rc2+ 44. Kf3 Kxf7 45. Rxd6 Ke7) 42. Nxd8 {[%emt 0:00:01]} Rxd8 {[%emt 0:00:01]} 43. Qd3 {[%emt 0:00:01]} Qe6 {[%emt 0:00:02]} (43... Qf6 $15) 44. Kf3 {[%emt 0:00:01]} (44. Rxc5 $5 dxc5 45. Qxd8 $11) 44... Rd7 {[%emt 0:00:01]} 45. g4 {[%emt 0:00:02]} fxg4+ {[%emt 0:00:02]} 46. hxg4 {[%emt 0:00:01]} Qe7 {[%emt 0:00:01]} 47. e4 {[%emt 0:00:02]} Qh4 {[%emt 0:00:03]} 48. Qb5 $2 {[%emt 0:00:08][%mdl 8192]} (48. f5 $15) 48... Qh3+ $19 {[%emt 0:00:01]} 49. Kf2 {[%emt 0:00:01]} Qh2+ {[%emt 0:00:01]} 50. Ke3 $2 {[%emt 0:00:03]} (50. Kf3 Qh3+ 51. Ke2 Qxg4+ 52. Kd3) 50... Qg3+ $19 {[%emt 0:00:02]} 51. Ke2 {[%emt 0:00:00]} Qxg4+ {[%emt 0:00:01]} 52. Kd3 {[%emt 0:00:01]} Qf3+ {[%emt 0:00:01]} 53. Kc2 {[%emt 0:00:05]} Qxe4+ {[%emt 0:00:02]} 54. Rd3 {[%emt 0:00:00]} Rf7 {[%emt 0:00:03]} 55. Qb8 {[%emt 0:00:04]} c4 {[%emt 0:00:03]} 56. bxc4 Qxc4+ {[%emt 0:00:01]} 57. Kd2 {[%emt 0:00:02]} Qxf4+ {[%emt 0:00:01]} 58. Re3 {[%emt 0:00:03]} Qd4+ {[%emt 0:00:01]} 59. Ke2 {[%emt 0:00:01]} Qb2+ {[%emt 0:00:03]} 60. Kd3 {[%emt 0:00:02]} Qc3+ {[%emt 0:00:01]} 61. Ke2 {[%emt 0:00:03]} Qc2+ {[%emt 0:00:01]} 0-1

[Event "American Cup Blitz 2024"]
[Site "Saint Louis"]
[Date "2024.03.21"]
[Round "4.10"]
[White "Proleiko, Julian"]
[Black "Rosen, Eric"]
[Result "1-0"]
[ECO "A13"]
[WhiteElo "2290"]
[BlackElo "2361"]
[Annotator "RC"]
[PlyCount "105"]
[EventDate "2024.03.21"]
[EventType "swiss"]
[EventCountry "USA"]
[SourceTitle "playchess.com"]
[Source "ChessBase"]
[SourceQuality "1"]
[TimeControl "180+2"]

1. Nf3 {[%emt 0:00:03]} d5 {[%emt 0:00:01]} 2. g3 {[%emt 0:00:01]} Nf6 {[%emt 0:00:01]} 3. Bg2 {[%emt 0:00:01]} e6 {[%emt 0:00:01]} 4. O-O {[%emt 0:00:02]} Be7 {[%emt 0:00:00]} 5. c4 {[%emt 0:00:03]} dxc4 {[%emt 0:00:05]} 6. Qa4+ {[%emt 0:00:05]} c6 {[%emt 0:00:01]} 7. Qxc4 {[%emt 0:00:02]} b5 8. Qc2 {[%emt 0:00:01]} Bb7 {[%emt 0:00:01]} 9. d3 {[%emt 0:00:07]} Nbd7 {[%emt 0:00:03]} 10. Rd1 {[%emt 0:00:10]} O-O {[%emt 0:00:15]} 11. Nc3 {[%emt 0:00:10]} a6 {[%emt 0:00:01]} 12. e4 {[%emt 0:00:03]} c5 {[%emt 0:00:04]} 13. Bf4 {[%emt 0:00:13]} Rc8 {[%emt 0:00:10]} 14. Ne5 {[%emt 0:00:26]} Nxe5 {[%emt 0:00:20]} 15. Bxe5 {[%emt 0:00:02]} Qb6 {[%emt 0:00:00]} 16. a4 {[%emt 0:00:15]} Rfd8 {[%emt 0:00:07]} 17. a5 {[%emt 0:00:18]} Qa7 {[%emt 0:00:04]} 18. Qe2 {[%emt 0:00:06]} Rd7 {[%emt 0:00:19]} 19. Bf4 {[%emt 0:00:22]} Rcd8 {[%emt 0:00:13]} 20. Be3 {[%emt 0:00:01]} Qb8 {[%emt 0:00:06]} 21. h4 {[%emt 0:00:13]} Qc7 {[%emt 0:00:31]} 22. h5 {[%emt 0:00:03]} h6 {[%emt 0:00:01]} 23. Bf3 {[%emt 0:00:02]} c4 {[%emt 0:00:21]} 24. Bb6 {[%emt 0:00:15]} cxd3 {[%emt 0:00:05]} 25. Qe3 {[%emt 0:00:10]} Qc4 {[%emt 0:00:06]} 26. Bxd8 {[%emt 0:00:03]} Rxd8 {[%emt 0:00:00]} 27. e5 {[%emt 0:00:12]} Bc5 {[%emt 0:00:09]} 28. b3 {[%emt 0:00:26]} Qxc3 {[%emt 0:00:13]} 29. Qf4 {[%emt 0:00:02]} Bxf3 {[%emt 0:00:13]} 30. Rac1 {[%emt 0:00:01]} Bxf2+ {[%emt 0:00:20]} 31. Kxf2 {[%emt 0:00:01]} Qb2+ {[%emt 0:00:05]} 32. Qd2 {[%emt 0:00:01]} Qd4+ {[%emt 0:00:02]} 33. Kxf3 {[%emt 0:00:03]} Qg4+ {[%emt 0:00:02]} 34. Kg2 {[%emt 0:00:01]} Ne4 {[%emt 0:00:02]} 35. Qe3 {[%emt 0:00:02]} Ng5 {[%emt 0:00:03]} 36. Rxd3 {[%emt 0:00:04]} Qh3+ {[%emt 0:00:00]} 37. Kg1 {[%emt 0:00:01]} Rxd3 {[%emt 0:00:05]} 38. Rc8+ {[%emt 0:00:01]} Rd8 {[%emt 0:00:02]} 39. Rxd8+ {[%emt 0:00:01]} Kh7 40. Qd3+ {[%emt 0:00:00]} g6 {[%emt 0:00:03]} 41. hxg6+ {[%emt 0:00:02]} Kg7 {[%emt 0:00:02]} 42. gxf7 {[%emt 0:00:05]} Nxf7 {[%emt 0:00:01]} 43. Rd7 {[%emt 0:00:03]} Qg4 {[%emt 0:00:02]} 44. Kg2 {[%emt 0:00:03]} h5 {[%emt 0:00:02]} 45. Qf3 {[%emt 0:00:01]} Qg6 {[%emt 0:00:05]} 46. Qf6+ {[%emt 0:00:02]} Qxf6 {[%emt 0:00:01]} 47. exf6+ {[%emt 0:00:01]} Kxf6 {[%emt 0:00:01]} 48. Ra7 {[%emt 0:00:00]} Nd6 {[%emt 0:00:05]} 49. Rxa6 {[%emt 0:00:01]} Ke5 {[%emt 0:00:01]} 50. Rb6 {[%emt 0:00:02]} Kd5 {[%emt 0:00:03]} 51. a6 {[%emt 0:00:00]} Kc5 {[%emt 0:00:00]} 52. Rxd6 {[%emt 0:00:02]} Kxd6 {[%emt 0:00:01]} 53. a7 {[%emt 0:00:00]} 1-0

[Event "American Cup Blitz 2024"]
[Site "Saint Louis"]
[Date "2024.03.21"]
[Round "5.1"]
[White "Durarbayli, Vasif"]
[Black "Caruana, Fabiano"]
[Result "1/2-1/2"]
[ECO "C45"]
[WhiteElo "2627"]
[BlackElo "2804"]
[Annotator "ChessBase"]
[PlyCount "235"]
[EventDate "2024.03.21"]
[EventType "swiss"]
[EventCountry "USA"]
[SourceTitle "playchess.com"]
[Source "ChessBase"]
[SourceQuality "1"]
[TimeControl "180+2"]

1. e4 {[%emt 0:00:01]} e5 {[%emt 0:00:01]} 2. Nf3 {[%emt 0:00:05]} Nc6 {[%emt 0:00:01]} 3. d4 {[%emt 0:00:01]} exd4 {[%emt 0:00:02]} 4. Nxd4 {[%emt 0:00:02]} Nf6 {[%emt 0:00:01]} 5. Nxc6 {[%emt 0:00:01]} bxc6 {[%emt 0:00:01]} 6. e5 {[%emt 0:00:01]} Qe7 {[%emt 0:00:01]} 7. Qe2 {[%emt 0:00:01]} Nd5 {[%emt 0:00:01]} 8. h4 {[%emt 0:00:01]} a5 {[%emt 0:00:10]} 9. c4 {[%emt 0:00:01]} Ba6 {[%emt 0:00:03]} 10. Rh3 {[%emt 0:00:02]} Nb6 {[%emt 0:00:02]} 11. b3 {[%emt 0:00:07]} Qe6 {[%emt 0:00:09]} 12. Bb2 {[%emt 0:00:08]} a4 {[%emt 0:00:38]} 13. Nd2 {[%emt 0:00:02]} Bb4 {[%emt 0:00:05]} 14. O-O-O {[%emt 0:00:02]} axb3 {[%emt 0:00:12]} 15. axb3 {[%emt 0:00:02]} Bb7 {[%emt 0:00:04]} 16. Ne4 {[%emt 0:00:22]} c5 {[%emt 0:00:06]} 17. Ng5 {[%emt 0:00:21]} Qe7 {[%emt 0:00:09]} 18. Re3 {[%emt 0:00:17]} O-O-O {[%emt 0:00:14]} 19. g3 {[%emt 0:00:11]} Kb8 {[%emt 0:00:09]} 20. f4 {[%emt 0:00:17]} h6 {[%emt 0:00:05]} 21. Ne4 {[%emt 0:00:01]} Rhe8 {[%emt 0:00:07]} 22. Bg2 {[%emt 0:00:10]} Qe6 {[%emt 0:00:27]} 23. Nd6 {[%emt 0:00:22]} Bxg2 {[%emt 0:00:35]} 24. Nxe8 {[%emt 0:00:02]} Bh3 {[%emt 0:00:01]} 25. Nd6 {[%emt 0:00:12]} Nc8 {[%emt 0:00:23]} 26. Nxc8 {[%emt 0:00:22]} Bg4 {[%emt 0:00:00]} 27. Qd3 {[%emt 0:00:11]} Bxd1 {[%emt 0:00:02]} 28. f5 {[%emt 0:00:05]} Qa6 {[%emt 0:00:02]} 29. Ne7 {[%emt 0:00:09]} Bg4 {[%emt 0:00:01]} 30. Nd5 {[%emt 0:00:08]} h5 {[%emt 0:00:03]} 31. Nxb4 {[%emt 0:00:04]} cxb4 {[%emt 0:00:01]} 32. Bd4 {[%emt 0:00:09]} Qc6 {[%emt 0:00:03]} 33. Qd2 {[%emt 0:00:04]} Qb7 {[%emt 0:00:01]} 34. f6 {[%emt 0:00:01]} g6 {[%emt 0:00:02]} 35. Bc5 {[%emt 0:00:02]} Re8 {[%emt 0:00:06]} 36. Qxb4 {[%emt 0:00:02]} Qxb4 {[%emt 0:00:02]} 37. Bxb4 {[%emt 0:00:01]} Kb7 {[%emt 0:00:01]} 38. Be7 {[%emt 0:00:01]} Ra8 {[%emt 0:00:01]} 39. Kb2 {[%emt 0:00:01]} Be6 {[%emt 0:00:02]} 40. Rd3 {[%emt 0:00:03]} Rg8 {[%emt 0:00:01]} 41. Bb4 {[%emt 0:00:04]} g5 {[%emt 0:00:01]} 42. Bd2 {[%emt 0:00:01]} gxh4 {[%emt 0:00:01]} 43. gxh4 {[%emt 0:00:01]} Rg4 {[%emt 0:00:01]} 44. Bg5 {[%emt 0:00:01]} Re4 {[%emt 0:00:01]} 45. Re3 {[%emt 0:00:01]} Rg4 {[%emt 0:00:01]} 46. Kc3 {[%emt 0:00:01]} Kc6 {[%emt 0:00:01]} 47. Rd3 {[%emt 0:00:03]} Rg2 {[%emt 0:00:02]} 48. Re3 {[%emt 0:00:02]} Bf5 {[%emt 0:00:01]} 49. Rf3 {[%emt 0:00:02]} Rc2+ {[%emt 0:00:02]} 50. Kb4 {[%emt 0:00:01]} Be6 {[%emt 0:00:01]} 51. Rc3 {[%emt 0:00:03]} Rb2 {[%emt 0:00:03]} 52. Re3 {[%emt 0:00:03]} Rg2 {[%emt 0:00:02]} 53. Kc3 {[%emt 0:00:01]} Kc5 {[%emt 0:00:02]} 54. Rf3 {[%emt 0:00:07]} Kb6 {[%emt 0:00:01]} 55. Re3 {[%emt 0:00:02]} c5 {[%emt 0:00:01]} 56. Rd3 {[%emt 0:00:01]} Kb7 {[%emt 0:00:02]} 57. b4 {[%emt 0:00:02]} Rg4 {[%emt 0:00:02]} 58. bxc5 {[%emt 0:00:03]} Rxc4+ {[%emt 0:00:01]} 59. Kd2 {[%emt 0:00:02]} Rxc5 {[%emt 0:00:01]} 60. Re3 {[%emt 0:00:02]} Rc4 {[%emt 0:00:01]} 61. Kd3 {[%emt 0:00:01]} Kc6 {[%emt 0:00:02]} 62. Kd2 {[%emt 0:00:01]} Rg4 {[%emt 0:00:01]} 63. Rd3 {[%emt 0:00:01]} Kc5 {[%emt 0:00:01]} 64. Be3+ {[%emt 0:00:02]} Kc4 {[%emt 0:00:01]} 65. Bf2 {[%emt 0:00:03]} Rg2 {[%emt 0:00:04]} 66. Rd4+ {[%emt 0:00:02]} Kc5 {[%emt 0:00:08]} 67. Rf4+ {[%emt 0:00:01]} Kd5 {[%emt 0:00:02]} 68. Ke3 {[%emt 0:00:04]} Kxe5 {[%emt 0:00:02]} 69. Rf3 {[%emt 0:00:02]} Bg4 {[%emt 0:00:04]} 70. Rf4 {[%emt 0:00:02]} d5 {[%emt 0:00:02]} 71. Ra4 {[%emt 0:00:04]} d4+ {[%emt 0:00:01]} 72. Rxd4 {[%emt 0:00:01]} Rxf2 {[%emt 0:00:03]} 73. Rxg4 {[%emt 0:00:04]} Rxf6 {[%emt 0:00:08]} 74. Ra4 {[%emt 0:00:01]} Kf5 {[%emt 0:00:03]} 75. Kf3 {[%emt 0:00:01]} Kg6+ {[%emt 0:00:01]} 76. Kg3 {[%emt 0:00:01]} Re6 {[%emt 0:00:01]} 77. Ra5 {[%emt 0:00:01]} f6 {[%emt 0:00:01]} 78. Ra3 {[%emt 0:00:01]} Re4 {[%emt 0:00:00]} 79. Rb3 {[%emt 0:00:01]} Kf5 {[%emt 0:00:02]} 80. Rb5+ {[%emt 0:00:01]} Re5 {[%emt 0:00:00]} 81. Rb3 {[%emt 0:00:00]} Rd5 {[%emt 0:00:01]} 82. Rf3+ {[%emt 0:00:04]} Ke6 {[%emt 0:00:01]} 83. Re3+ {[%emt 0:00:01]} Re5 {[%emt 0:00:01]} 84. Ra3 {[%emt 0:00:01]} Rd5 {[%emt 0:00:06]} 85. Re3+ {[%emt 0:00:01]} Kf7 {[%emt 0:00:00]} 86. Ra3 {[%emt 0:00:01]} Kg6 {[%emt 0:00:01]} 87. Rb3 {[%emt 0:00:02]} Rd4 {[%emt 0:00:01]} 88. Ra3 {[%emt 0:00:02]} Re4 {[%emt 0:00:04]} 89. Rf3 {[%emt 0:00:05]} Rg4+ {[%emt 0:00:05]} 90. Kh3 {[%emt 0:00:01]} f5 {[%emt 0:00:01]} 91. Ra3 {[%emt 0:00:01]} f4 {[%emt 0:00:01]} 92. Ra6+ {[%emt 0:00:02]} Kg7 {[%emt 0:00:01]} 93. Ra7+ {[%emt 0:00:01]} Kf6 {[%emt 0:00:01]} 94. Ra6+ {[%emt 0:00:01]} Kf5 {[%emt 0:00:09]} 95. Ra5+ {[%emt 0:00:01]} Ke4 {[%emt 0:00:01]} 96. Ra4+ {[%emt 0:00:07]} Kd3 {[%emt 0:00:03]} 97. Ra3+ {[%emt 0:00:01]} Kc4 {[%emt 0:00:01]} 98. Ra4+ {[%emt 0:00:06]} Kb5 {[%emt 0:00:02]} 99. Re4 {[%emt 0:00:01]} Kc6 {[%emt 0:00:05]} 100. Ra4 {[%emt 0:00:02]} f3 {[%emt 0:00:03]} 101. Ra6+ {[%emt 0:00:05]} Kd5 {[%emt 0:00:01]} 102. Ra5+ {[%emt 0:00:02]} Ke4 {[%emt 0:00:01]} 103. Ra4+ {[%emt 0:00:02]} Ke3 {[%emt 0:00:01]} 104. Ra3+ {[%emt 0:00:00]} Ke2 {[%emt 0:00:01]} 105. Ra2+ {[%emt 0:00:01]} Kd1 {[%emt 0:00:02]} 106. Ra1+ {[%emt 0:00:01]} Kc2 {[%emt 0:00:01]} 107. Rf1 {[%emt 0:00:05]} Kd3 {[%emt 0:00:06]} 108. Rxf3+ {[%emt 0:00:01]} Ke4 {[%emt 0:00:01]} 109. Rf8 {[%emt 0:00:02]} Rf4 {[%emt 0:00:02]} 110. Rxf4+ {[%emt 0:00:02]} Kxf4 {[%emt 0:00:00]} 111. Kg2 {[%emt 0:00:00]} Kg4 {[%emt 0:00:02]} 112. Kh2 {[%emt 0:00:01]} Kxh4 {[%emt 0:00:01]} 113. Kg2 {[%emt 0:00:01]} Kg5 {[%emt 0:00:01]} 114. Kh1 {[%emt 0:00:00]} Kf6 {[%emt 0:00:01]} 115. Kg2 {[%emt 0:00:01]} Ke7 {[%emt 0:00:00]} 116. Kh3 {[%emt 0:00:00]} Kd8 {[%emt 0:00:01]} 117. Kh4 {[%emt 0:00:00]} Ke8 {[%emt 0:00:01]} 118. Kxh5 1/2-1/2

[Event "American Cup Blitz 2024"]
[Site "Saint Louis"]
[Date "2024.03.21"]
[Round "5.2"]
[White "Bok, Benjamin"]
[Black "So, Wesley"]
[Result "1/2-1/2"]
[ECO "E11"]
[WhiteElo "2620"]
[BlackElo "2757"]
[Annotator "ChessBase"]
[PlyCount "91"]
[EventDate "2024.03.21"]
[EventType "swiss"]
[EventCountry "USA"]
[SourceTitle "playchess.com"]
[Source "ChessBase"]
[SourceQuality "1"]
[TimeControl "180+2"]

1. d4 {[%emt 0:00:01]} d5 {[%emt 0:00:01]} 2. c4 {[%emt 0:00:01]} e6 {[%emt 0:00:01]} 3. Nf3 {[%emt 0:00:02]} Nf6 {[%emt 0:00:03]} 4. g3 {[%emt 0:00:02]} Bb4+ {[%emt 0:00:05]} 5. Bd2 {[%emt 0:00:01]} a5 {[%emt 0:00:01]} 6. Bg2 {[%emt 0:00:02]} O-O {[%emt 0:00:02]} 7. Qc2 {[%emt 0:00:03]} Be7 {[%emt 0:00:09]} 8. O-O {[%emt 0:00:03]} Nbd7 {[%emt 0:00:03]} 9. Rd1 {[%emt 0:00:05]} c6 {[%emt 0:00:02]} 10. Bf4 {[%emt 0:00:02]} a4 {[%emt 0:00:02]} 11. Ne5 {[%emt 0:00:13]} Qa5 {[%emt 0:00:04]} 12. Nc3 {[%emt 0:00:10]} Nxe5 {[%emt 0:00:03]} 13. dxe5 {[%emt 0:00:04]} Nd7 {[%emt 0:00:27]} 14. cxd5 {[%emt 0:00:03]} exd5 {[%emt 0:00:02]} 15. e4 {[%emt 0:00:41]} dxe4 {[%emt 0:00:02]} 16. Bxe4 {[%emt 0:00:11]} Nxe5 {[%emt 0:00:13]} 17. Nd5 {[%emt 0:00:58]} cxd5 {[%emt 0:00:08]} 18. Rxd5 {[%emt 0:00:01]} Nf3+ {[%emt 0:00:02]} 19. Bxf3 {[%emt 0:00:33]} Qb6 {[%emt 0:00:01]} 20. Be3 {[%emt 0:00:15]} Qa6 {[%emt 0:00:02]} 21. Qd3 {[%emt 0:00:08]} Qxd3 {[%emt 0:00:10]} 22. Rxd3 {[%emt 0:00:01]} Bf6 {[%emt 0:00:01]} 23. Bd4 {[%emt 0:00:01]} Rd8 {[%emt 0:00:10]} 24. Rad1 {[%emt 0:00:03]} Bf5 {[%emt 0:00:05]} 25. R3d2 {[%emt 0:00:01]} Bg5 {[%emt 0:00:04]} 26. Be3 {[%emt 0:00:03]} Rxd2 {[%emt 0:00:02]} 27. Rxd2 {[%emt 0:00:01]} Bxe3 {[%emt 0:00:02]} 28. fxe3 {[%emt 0:00:00]} a3 {[%emt 0:00:08]} 29. bxa3 {[%emt 0:00:07]} Kf8 {[%emt 0:00:09]} 30. Bxb7 {[%emt 0:00:02]} Rxa3 {[%emt 0:00:00]} 31. Kf2 {[%emt 0:00:01]} Be6 {[%emt 0:00:02]} 32. Bd5 {[%emt 0:00:02]} Bxd5 {[%emt 0:00:02]} 33. Rxd5 {[%emt 0:00:00]} Rxa2+ {[%emt 0:00:02]} 34. Kg1 {[%emt 0:00:01]} Ke7 {[%emt 0:00:08]} 35. h3 {[%emt 0:00:02]} Ke6 {[%emt 0:00:03]} 36. Rb5 {[%emt 0:00:04]} Re2 {[%emt 0:00:05]} 37. Rb3 {[%emt 0:00:01]} g6 {[%emt 0:00:02]} 38. Kf1 {[%emt 0:00:03]} Rh2 {[%emt 0:00:02]} 39. h4 {[%emt 0:00:01]} h5 {[%emt 0:00:02]} 40. Rb5 {[%emt 0:00:02]} Rd2 {[%emt 0:00:03]} 41. Ra5 {[%emt 0:00:02]} f6 {[%emt 0:00:10]} 42. Rb5 {[%emt 0:00:01]} Rd5 {[%emt 0:00:08]} 43. Rb4 {[%emt 0:00:01]} Rd2 {[%emt 0:00:03]} 44. Rb5 {[%emt 0:00:01]} Rd5 {[%emt 0:00:01]} 45. Rb4 {[%emt 0:00:01]} Rd2 {[%emt 0:00:01]} 46. Rb5 {[%emt 0:00:00]} 1/2-1/2

[Event "American Cup Blitz 2024"]
[Site "Saint Louis"]
[Date "2024.03.21"]
[Round "5.3"]
[White "Aronian, Levon"]
[Black "Theodorou, Nikolas"]
[Result "1-0"]
[ECO "C18"]
[WhiteElo "2722"]
[BlackElo "2622"]
[Annotator "TA"]
[PlyCount "69"]
[EventDate "2024.03.21"]
[EventType "swiss"]
[EventCountry "USA"]
[SourceTitle "playchess.com"]
[Source "ChessBase"]
[SourceQuality "1"]
[TimeControl "180+2"]

{[%evp 12,69,35,0,11,6,28,21,35,14,38,-9,0,0,0,0,10,-29,-27,-29,-26,-66,-19,-42,-32,-53,-33,-51,-49,-49,-22,-24,58,65,164,141,508,369,667,625,832,778,1355,1273,1358,1336,1378,758,1023,1296,1290,1251,1373,1196,1439,1368,2417,2133,2413,2317]} 1. e4 {[%emt 0:00:02]} e6 {[%emt 0:00:01]} 2. d4 {[%emt 0:00:01]} d5 {[%emt 0:00:00]} 3. Nc3 {[%emt 0:00:01]} Bb4 {[%emt 0:00:01]} 4. e5 {[%emt 0:00:02]} c5 {[%emt 0:00:02]} 5. a3 {[%emt 0:00:08]} Bxc3+ {[%emt 0:00:01]} 6. bxc3 {[%emt 0:00:01]} Nc6 {[%emt 0:00:01]} 7. a4 {[%emt 0:00:11]} Qa5 {[%emt 0:00:16]} 8. Bd2 {[%emt 0:00:07]} c4 {[%emt 0:00:02]} 9. h4 {[%emt 0:00:05]} f6 {[%emt 0:00:46] The position is equal.} 10. Nf3 {[%emt 0:00:03]} Bd7 {[%emt 0:00:12]} 11. h5 {[%emt 0:00:02]} (11. g3 $14 {is more appropriate.}) 11... O-O-O {[%emt 0:00:02]} 12. g3 {[%emt 0:00:00]} Rf8 {[%emt 0:00:07]} 13. Bg2 {[%emt 0:00:11]} fxe5 {[%emt 0:00:13]} 14. Nxe5 {[%emt 0:00:09]} Nxe5 {[%emt 0:00:10]} 15. dxe5 {[%emt 0:00:01]} Ne7 {[%emt 0:00:01]} 16. h6 {[%emt 0:00:18]} g6 {[%emt 0:00:03]} (16... Rhg8 $15 {deserves consideration.}) 17. O-O {[%emt 0:00:15]} Rf7 {[%emt 0:00:23]} 18. Qe2 {[%emt 0:00:24]} Rhf8 {[%emt 0:00:02]} 19. Bh3 {[%emt 0:00:24]} Nf5 {[%emt 0:00:07]} 20. Kh2 {[%emt 0:00:15]} Bc6 {[%emt 0:00:38]} 21. g4 {[%emt 0:00:18]} Nh4 {[%emt 0:00:13]} (21... Ne7 $1 $11) 22. f4 $36 {[%emt 0:00:02][%cal Bf2f4,Bf4f5,Bf5e6][%mdl 2080] White has good play.} g5 {[%emt 0:00:00]} (22... Qd8 $14) 23. f5 $1 $18 {[%emt 0:00:03]} (23. fxg5 $2 Nf3+ (23... Bxa4 $2 24. Rf6 $18) 24. Kg3 d4 $19 (24... Bxa4 $2 25. g6 $18)) 23... d4 $2 {[%emt 0:00:02][%mdl 8192] A mistake that costs the game.} (23... Qd8 $16 {is tougher.} 24. Qe3 (24. fxe6 Rf3 $11) 24... d4 25. Qxg5 (25. Qxd4 $2 Rd7 $19) (25. cxd4 c3 $18) 25... Nf3+ 26. Rxf3 Bxf3 27. Qxd8+ (27. fxe6 Re7 $18) 27... Rxd8 28. fxe6 Re7) 24. cxd4 {[%emt 0:00:14]} Qd5 {[%emt 0:00:12]} (24... Qd8 25. Qxc4 (25. fxe6 $2 {perishes.} Nf3+ 26. Rxf3 Rxf3 $19) 25... exf5) 25. Bxg5 {[%emt 0:00:02] White is clearly winning.} Nf3+ {[%emt 0:00:11] [#]} 26. Rxf3 $1 {[%emt 0:00:01]} Qxf3 {[%emt 0:00:02]} (26... Rg8 27. Bf6) 27. Qxf3 {[%emt 0:00:01]} (27. Qxc4 $2 {is a self mate.} Qf2+) 27... Bxf3 {[%emt 0:00:02]} 28. fxe6 {[%emt 0:00:01]} Rc7 {[%emt 0:00:01]} 29. Bf6 {[%emt 0:00:01]} Be4 {[%emt 0:00:05]} 30. g5 {[%emt 0:00:03][%cal Bg4g5,Bg5g6,Bg6g7][%mdl 32] White threatens e7+ and mate.} Kb8 31. Re1 {[%emt 0:00:04]} Bd5 {[%emt 0:00:04]} 32. e7 {[%emt 0:00:06]} Re8 {[%emt 0:00:01] [#]} 33. g6 $1 {[%emt 0:00:01]} Rcxe7 {[%emt 0:00:04]} (33... hxg6 34. h7) 34. Bxe7 {[%emt 0:00:03]} Rxe7 {[%emt 0:00:01]} 35. g7 {[%emt 0:00:01] Weighted Error Value: White=0.29 (precise) /Black=0.69.  Loses game:     	---       	Black=1      Mistake:       	White=1     	Black=4      Inaccurate:     	White=2     	Black=2      OK:         	White=5     	Black=3      Best:        	White=2     	---        Strong:       	White=1     	---} 1-0